Cogmind - Beta 13 @@@ ROGUE MODE // 2024.06.09 @ 21:14:02 Player: ZergFTW Result: Destroyed by S-27 Virus with Autogun Performance ------------- Evolutions (3) 1500 Regions Visited (9) 1800 Robots Destroyed (51) 255 Value Destroyed (910) 910 Prototype IDs (6) 120 Alien Tech Used (0) 0 Bonus (516) 516 TOTAL SCORE: 5101 Bonus ------- High Alert Combat Kills 16 Entered Garrisons 200 Aligned with FarCom 300 Cogmind --------- Core Integrity 0/700 Matter 91/300 Energy 140/140 System Corruption 8% Temperature Cool (0) Movement Flying (26) Location -7/Garrison Parts ------- > --- POWER (2) -------- Light Deuterium Engine > --- PROPULSION (5) --- VTOL Module Cesium-ion Thruster Improved VTOL Module Improved VTOL Module > --- UTILITY (4) ------ Cooling System Visual Processing Unit Improved Signal Interpreter Component Analysis Suite > --- WEAPON (2) ------- Lightning Gun Lightning Gun > --- INVENTORY (5) ---- Light Nuclear Core Trap Reconfigurator Improved Grenade Launcher Improved Grenade Launcher Improved Grenade Launcher Peak State ------------ > --- POWER ------------ Light Deuterium Engine Light Deuterium Engine > --- PROPULSION ------- VTOL Module VTOL Module Cesium-ion Thruster Improved VTOL Module Improved VTOL Module > --- UTILITY ---------- Cooling System Visual Processing Unit Improved Signal Interpreter Component Analysis Suite > --- WEAPON ----------- Lightning Gun Lightning Gun > --- INVENTORY -------- Light Nuclear Core Trap Reconfigurator Improved Grenade Launcher Improved Grenade Launcher Improved Grenade Launcher [Rating: 42] Favorites ----------- Power Light Nuclear Core Engine Ion Engine Power Core Light Nuclear Core Propulsion Flight Unit Wheel Wheel Flight Unit Flight Unit Utility Signal Interpreter Device Trap Reconfigurator Storage Small Storage Unit Processor Signal Interpreter Weapon Assault Rifle Energy Gun Lightning Gun Ballistic Gun Assault Rifle Ballistic Cannon Improved Light Cannon Launcher Mini Grenade Launcher Slashing Weapon Longsword +1 Build | -11 -10 -10 -9 -9 -9 -8 -8 -7 -7 ------- Run | Yrd Mat Min Mat Min Exi Min Mat Fac Gar Slots Evolved 6 | . . . 2 . . . 2 2 . Power 1 | . . . . . . . 1 . . Propulsion 3 | . . . 2 . . . . 1 . Utility 2 | . . . . . . . 1 1 . Weapon . | . . . . . . . . . . Parts Attached 73 | 7 12 8 10 4 5 6 6 15 . Power 9 | 1 1 . 4 . . . 1 2 . Engine 6 | 1 1 . 2 . . . . 2 . Core 3 | . . . 2 . . . 1 . . Reactor . | . . . . . . . . . . Propulsion 19 | 2 . 3 4 . . 4 1 5 . Treads . | . . . . . . . . . . Leg . | . . . . . . . . . . Wheel 3 | 2 . 1 . . . . . . . Hover . | . . . . . . . . . . Flight 16 | . . 2 4 . . 4 1 5 . Utility 18 | 2 5 1 . 2 1 . 2 5 . Device 10 | 1 2 1 . 2 1 . . 3 . Storage 3 | 1 2 . . . . . . . . Processor 5 | . 1 . . . . . 2 2 . Hackware . | . . . . . . . . . . Protection . | . . . . . . . . . . Artifact . | . . . . . . . . . . Weapon 27 | 2 6 4 2 2 4 2 2 3 . Energy Gun 4 | . . . . . . . 1 3 . Energy Cannon . | . . . . . . . . . . Ballistic Gun 11 | 2 3 3 . . 1 1 1 . . Ballistic Cannon 5 | . . . 2 1 1 1 . . . Launcher 6 | . 3 1 . 1 1 . . . . Special Weapon . | . . . . . . . . . . Impact Weapon . | . . . . . . . . . . Slashing Weapon 1 | . . . . . 1 . . . . Piercing Weapon . | . . . . . . . . . . Special Melee Weapon . | . . . . . . . . . . Unidentified Prototypes 6 | . . . 1 . 3 . 1 1 . Parts Lost 22 | . . 5 2 . . 4 7 3 1 Power 1 | . . . 1 . . . . . . Propulsion 11 | . . 2 1 . . 2 4 1 1 Utility 2 | . . . . . . . . 2 . Weapon 8 | . . 3 . . . 2 3 . . Highest Loss Streak 5 | . . 3 1 . . 4 5 3 1 To Critical Strikes . | . . . . . . . . . . Average Slot Usage (%) 88 | . 100 89 98 100 99 97 74 50 100 Engine 6 | . 14 14 3 . . . . 5 15 Core 4 | . . . 7 11 11 11 8 . . Wheel 8 | . 28 13 . . . . . . . Flight 23 | . . 11 42 44 44 42 32 17 38 Device 9 | . 9 10 11 11 11 11 8 7 15 Storage 3 | . 14 3 . . . . . . . Processor 10 | . 5 14 11 11 11 11 12 15 15 Ballistic Gun 10 | . 24 20 10 . . . 9 . . Ballistic Cannon 4 | . . . 11 19 10 11 1 . . Launcher 3 | . 4 . . 2 10 8 . . . Naked Turns . | . . . . . . . . . . Heaviest Build 21 | 13 16 14 14 16 16 14 14 21 21 Greatest Support 23 | 20 20 20 16 16 16 16 16 23 23 Greatest Overweight (x) 1 | 1 . 1 1 . . . . . . Average Overweight (x) . | . . . . . . . . . . Largest Inventory Capacity 10 | 8 10 8 5 5 5 5 5 5 5 Average Capacity 5 | 6 8 5 5 5 5 5 5 5 5 Most Carried 8 | 5 8 8 5 5 5 5 5 5 5 Average Carried 5 | 3 7 5 4 4 4 4 4 4 5 Final Capacity 8 | 8 8 5 5 5 5 5 5 5 5 Final Carried 8 | 5 8 5 4 5 5 4 5 5 5 Class Distribution -------------------- 48% | Mutant 37% | Scavenger-Sprinter 10% | Sprinter 3% | Scavenger-Mutant Dominant Class ---------------- Mutant | -10/Materials Mutant | -10/Mines Sprinter | -9/Materials Scavenger-Sprinter | -9/Mines Scavenger-Sprinter | -9/Exiles Scavenger-Sprinter | -8/Mines Scavenger-Sprinter | -8/Materials Sprinter | -7/Factory Scavenger-Sprinter | -7/Garrison Resources | -11 -10 -10 -9 -9 -9 -8 -8 -7 -7 ----------- Run | Yrd Mat Min Mat Min Exi Min Mat Fac Gar Matter Collected 1216 | 241 212 122 265 . . 178 15 183 . Remotely . | . . . . . . . . . . Salvage Created 924 | 50 247 91 183 . . 155 15 183 . Parts 91 | 7 25 7 12 . . 25 1 14 . Haulers Intercepted 1 | . 1 . . . . . . . . Recyclers Shooed 1 | . 1 . . . . . . . . Parts Field Recycled . | . . . . . . . . . . Retrieved Matter . | . . . . . . . . . . Parts Self-Destructed . | . . . . . . . . . . Prevented . | . . . . . . . . . . Kills | -11 -10 -10 -9 -9 -9 -8 -8 -7 -7 ------- Run | Yrd Mat Min Mat Min Exi Min Mat Fac Gar Combat Hostiles Destroyed 37 | . 14 4 5 . . 11 1 2 . Melee 2 | . . . . . . . . 2 . Guns 7 | . 2 4 . . . . 1 . . Cannons 5 | . . . 5 . . . . . . AOE 23 | . 12 . . . . 11 . . . Classes Destroyed 9 | 1 5 . 1 . . 1 . 1 . Worker 3 | . 1 . . . . . . 2 . Builder 1 | . . . . . . . . 1 . Tunneler 4 | 2 . . . . . 2 . . . Hauler 1 | . 1 . . . . . . . . Watcher 5 | . 2 . 1 . . . . 2 . Swarmer 25 | . 9 3 . . . 10 1 2 . Grunt 10 | . 5 1 4 . . . . . . Sentry 1 | . . . 1 . . . . . . Hunter 1 | . . . . . . 1 . . . Best Kill Streak 5 | 1 5 3 5 . . 5 1 3 . Combat Bots Only 4 | . 3 3 4 . . 4 1 2 . Max Kills in Single Turn 4 | 1 2 1 1 . . 4 1 1 . Gunslinging . | . . . . . . . . . . Exploded 4 | . 2 . . . . 4 . . . Melee 1 | . . . . . . . . 1 . Uniques/NPCs Destroyed . | . . . . . . . . . . Combat | -11 -10 -10 -9 -9 -9 -8 -8 -7 -7 -------- Run | Yrd Mat Min Mat Min Exi Min Mat Fac Gar Hostile Shots Fired 297 | . 41 35 24 . . 34 61 51 51 Missed 101 | . 13 8 8 . . 14 23 10 25 Damage Taken 2597 | . 346 293 220 48 . 319 463 712 196 Core 1189 | . 135 26 28 . . 115 178 658 49 Absorbed by Shields 75 | . . . . . . . . . 75 Regen/Repaired (Parts) 16 | . . . 16 . . . . . . Core Remaining (%) 66 | 100 . 35 . . . 64 67 . . Volleys Fired 99 | 2 36 12 14 . . 19 10 6 . Largest 2 | 2 2 2 2 . . 2 2 2 . Hottest 110 | 40 50 40 78 . . 78 67 110 . Shots Fired 158 | 4 58 15 28 . . 28 13 12 . Gun 92 | 4 45 15 6 . . . 10 12 . Cannon 43 | . . . 22 . . 18 3 . . Launcher 23 | . 13 . . . . 10 . . . Special . | . . . . . . . . . . Kinetic 123 | 4 45 15 28 . . 18 13 . . Thermal . | . . . . . . . . . . Explosive 23 | . 13 . . . . 10 . . . Electromagnetic 12 | . . . . . . . . 12 . Robot Hit Streak 8 | 2 2 8 3 . . 2 4 5 . Robot Miss Streak 8 | 1 5 2 5 . . 8 5 3 . Penetration Max . | . . . . . . . . . . Secondary Targets . | . . . . . . . . . . Shots Hit Robots 59 | 2 17 12 11 . . 5 6 6 . Core Hits 78 | 3 29 5 6 . . 14 1 20 . Critical Kills . | . . . . . . . . . . Critical Parts Destroyed 3 | . 2 . . . . . 1 . . Critical Strikes 6 | . 2 . 2 . . . 1 1 . Destroy 3 | . 2 . . . . . 1 . . Blast 2 | . . . 2 . . . . . . Corrupt 1 | . . . . . . . . 1 . Melee Attacks . | . . . . . . . . . . Impact . | . . . . . . . . . . Slashing . | . . . . . . . . . . Piercing . | . . . . . . . . . . Sneak Attacks . | . . . . . . . . . . Combat Hostiles . | . . . . . . . . . . Follow-up Attacks . | . . . . . . . . . . Damage Inflicted 2698 | 38 1043 127 247 . . 781 113 349 . Guns 677 | 38 215 126 10 . . . 113 175 . Cannons 276 | . . . 237 . . 39 . . . Explosions 1650 | . 828 . . . . 742 . 80 . Melee . | . . . . . . . . . . Ramming 95 | . . 1 . . . . . 94 . Kinetic 778 | 38 215 126 247 . . 39 113 . . Thermal 80 | . . . . . . . . 80 . Explosive 1570 | . 828 . . . . 742 . . . Electromagnetic 175 | . . . . . . . . 175 . Impact . | . . . . . . . . . . Slashing . | . . . . . . . . . . Piercing . | . . . . . . . . . . Highest Corruption 13 | . . . . . . . 1 13 8 Average Corruption 8 | . . . . . . . 1 10 8 Corruption Purged 5 | . . . . . . . . 5 . Corruption Blocked . | . . . . . . . . . . Effects 14 | . . . . . . . . 13 1 Message Errors 6 | . . . . . . . . 5 1 Matter Fused 4 | . . . . . . . . 4 . Energy Discharges 1 | . . . . . . . . 1 . Data Loss (major) 1 | . . . . . . . . 1 . Misdirections 2 | . . . . . . . . 2 . Overload Shots . | . . . . . . . . . . Overflow Damage 58 | . 45 . . . . 12 . 1 . Projectiles . | . . . . . . . . . . Explosions 58 | . 45 . . . . 12 . 1 . Melee . | . . . . . . . . . . Knockbacks . | . . . . . . . . . . Impact . | . . . . . . . . . . Kinetic . | . . . . . . . . . . Secondary . | . . . . . . . . . . Self-Inflicted Damage 108 | . . . . . . 69 . 39 . Shots 2 | . . . . . . 2 . . . Rammed 24 | . . 1 . . . . . 23 . Targets Rammed 24 | . . 1 . . . . . 23 . Kicked . | . . . . . . . . . . Crushed . | . . . . . . . . . . Highest Temperature 145 | . 6 5 145 . . 138 23 90 . Average Temperature 49 | . 5 2 74 . . 38 10 40 . Received Heat Transfer 481 | . 72 105 69 . . . 189 . 46 Siege Activations . | . . . . . . . . . . Robots Corrupted . | . . . . . . . . . . Combat Hostiles . | . . . . . . . . . . Parts Fried . | . . . . . . . . . . Impact Corruptions . | . . . . . . . . . . Robots Melted . | . . . . . . . . . . Combat Hostiles . | . . . . . . . . . . Parts Melted . | . . . . . . . . . . Heat Transferred 100 | . . . . . . . . 100 . Parts Sabotaged . | . . . . . . . . . . Parts Stolen . | . . . . . . . . . . Parts Stripped . | . . . . . . . . . . Power Chain Reactions 1 | . . . . . . . . 1 . Alert | -11 -10 -10 -9 -9 -9 -8 -8 -7 -7 ------- Run | Yrd Mat Min Mat Min Exi Min Mat Fac Gar Peak Influence 444 | 10 444 158 346 134 . 253 335 266 76 Initial 134 | . 6 103 61 134 . . 64 129 56 Average 177 | 3 227 124 162 134 . 170 192 205 65 Maximum Alert Level 2 | . 2 . 1 . . 1 1 1 . Low Security (%) 65 | 100 28 100 72 100 . 96 60 33 100 Level 1 33 | . 69 . 27 . . 3 39 67 . Level 2 . | . 2 . . . . . . . . Level 3 . | . . . . . . . . . . Level 4 . | . . . . . . . . . . Level 5 . | . . . . . . . . . . High Security . | . . . . . . . . . . Max Security . | . . . . . . . . . . Squads Dispatched 8 | . 1 . 3 . . . 2 2 . Investigation 4 | . 1 . 1 . . . 1 1 . Extermination . | . . . . . . . . . . Reinforcement 4 | . . . 2 . . . 1 1 . Assault . | . . . . . . . . . . Garrison . | . . . . . . . . . . Intercept . | . . . . . . . . . . Searches Triggered . | . . . . . . . . . . Construction Impeded . | . . . . . . . . . . Haulers Reinforced . | . . . . . . . . . . Active Scanning Responses . | . . . . . . . . . . Cargo Convoy Interrupts . | . . . . . . . . . . Stealth | -11 -10 -10 -9 -9 -9 -8 -8 -7 -7 --------- Run | Yrd Mat Min Mat Min Exi Min Mat Fac Gar Distress Signals 7 | . 4 . 1 . . . 2 . . Communications Jammed . | . . . . . . . . . . Distress Signals . | . . . . . . . . . . Times Spotted 100 | . 19 5 20 . . 6 29 9 12 Peak Tracking Total 15 | . 5 3 7 . . 3 15 4 13 Tactical Retreats 9 | . . 1 1 . . . 4 3 . Traps | -11 -10 -10 -9 -9 -9 -8 -8 -7 -7 ------- Run | Yrd Mat Min Mat Min Exi Min Mat Fac Gar Traps Triggered 5 | . 1 . . 1 . . 2 . 1 Indirectly . | . . . . . . . . . . Trap Hack Attempts . | . . . . . . . . . . Triggered . | . . . . . . . . . . Disarmed 5 | . 5 . . . . . . . . Reprogrammed . | . . . . . . . . . . Reused . | . . . . . . . . . . Traps Reconfigurated 1 | . . . . . . . 1 . . Traps Extracted . | . . . . . . . . . . Installed . | . . . . . . . . . . Triggered . | . . . . . . . . . . Machines | -11 -10 -10 -9 -9 -9 -8 -8 -7 -7 ---------- Run | Yrd Mat Min Mat Min Exi Min Mat Fac Gar Machines Disabled 5 | . 1 . 1 . . 3 . . . Max in Single Turn 2 | . 1 . 1 . . 2 . . . Machines Repaired . | . . . . . . . . . . Machines Dismantled . | . . . . . . . . . . Machines Sabotaged . | . . . . . . . . . . Overloaded Fab Kills . | . . . . . . . . . . Hacking | -11 -10 -10 -9 -9 -9 -8 -8 -7 -7 --------- Run | Yrd Mat Min Mat Min Exi Min Mat Fac Gar Machines Accessed 16 | . 4 . 3 1 4 . . 4 . Terminals 5 | . 2 . 2 . . . . 1 . Fabricators 1 | . . . . . . . . 1 . Repair Stations 1 | . . . 1 . . . . . . Recycling Units 3 | . 2 . . . . . . 1 . Scanalyzers . | . . . . . . . . . . Garrison Access 1 | . . . . . . . . 1 . Total Hacks 74 | . 10 . 8 1 49 . . 6 . Successful 67 | . 7 . 7 1 49 . . 3 . Failed 7 | . 3 . 1 . . . . 3 . Catastrophic . | . . . . . . . . . . Database Lockouts . | . . . . . . . . . . Manual 1 | . . . . . 1 . . . . Terminals 14 | . 7 . 6 . . . . 1 . Fabricators 2 | . . . . . . . . 2 . Repair Stations 2 | . . . 2 . . . . . . Recycling Units 4 | . 3 . . . . . . 1 . Scanalyzers . | . . . . . . . . . . Garrison Access 2 | . . . . . . . . 2 . Terminal Hacks 61 | . 5 . 5 1 49 . . 1 . Record 55 | . 2 . 4 . 49 . . . . Open Door 1 | . . . . 1 . . . . . Open DSF 1 | . . . . . . . . 1 . Locate Traps 1 | . 1 . . . . . . . . Disarm Traps 2 | . 2 . . . . . . . . Registered Components 1 | . . . 1 . . . . . . Fabricator Hacks . | . . . . . . . . . . Repair Station Hacks 2 | . . . 2 . . . . . . Scan Component 1 | . . . 1 . . . . . . Repair 1 | . . . 1 . . . . . . Recycling Unit Hacks 3 | . 2 . . . . . . 1 . Report Inventory 2 | . 2 . . . . . . . . Retrieve Matter 1 | . . . . . . . . 1 . Scanalyzer . | . . . . . . . . . . Garrison Access Hacks 1 | . . . . . . . . 1 . Unlock Access 1 | . . . . . . . . 1 . Unauthorized Hacks . | . . . . . . . . . . Terminals . | . . . . . . . . . . Fabricators . | . . . . . . . . . . Repair Stations . | . . . . . . . . . . Recycling Units . | . . . . . . . . . . Scanalyzers . | . . . . . . . . . . Garrison Access . | . . . . . . . . . . Data Cores Recovered . | . . . . . . . . . . Used . | . . . . . . . . . . Hacking Detections 6 | . 2 . 1 . . . . 3 . Full Trace Events 3 | . 1 . 1 . . . . 1 . Feedback Events . | . . . . . . . . . . Feedback Blocked . | . . . . . . . . . . Robot Schematics Acquired . | . . . . . . . . . . Robots Built . | . . . . . . . . . . Authchips . | . . . . . . . . . . Time . | . . . . . . . . . . Total Robot Build Rating . | . . . . . . . . . . Part Schematics Acquired . | . . . . . . . . . . Parts Built . | . . . . . . . . . . Authchips . | . . . . . . . . . . Time . | . . . . . . . . . . Total Part Build Rating . | . . . . . . . . . . Parts Repaired 1 | . . . 1 . . . . . . Time 26 | . . . 26 . . . . . . Parts Recycled . | . . . . . . . . . . Recycled Matter . | . . . . . . . . . . Retrieved Matter . | . . . . . . . . . . Retrieved Components . | . . . . . . . . . . Parts Scanalyzed . | . . . . . . . . . . Part Schematics Acquired . | . . . . . . . . . . Parts Damaged . | . . . . . . . . . . Bothacking | -11 -10 -10 -9 -9 -9 -8 -8 -7 -7 ------------ Run | Yrd Mat Min Mat Min Exi Min Mat Fac Gar Used RIF Installer . | . . . . . . . . . . Robots Hacked . | . . . . . . . . . . Non-combat . | . . . . . . . . . . Combat . | . . . . . . . . . . Robot Hacks Applied . | . . . . . . . . . . Relay Couplers Released . | . . . . . . . . . . Fabnet Peak Effective % . | . . . . . . . . . . Robots Rewired . | . . . . . . . . . . Allies Hacked . | . . . . . . . . . . Hacks Repelled . | . . . . . . . . . . Allies | -11 -10 -10 -9 -9 -9 -8 -8 -7 -7 -------- Run | Yrd Mat Min Mat Min Exi Min Mat Fac Gar Total Allies . | . . . . . . . . . . Largest Group . | . . . . . . . . . . Highest-Rated Group . | . . . . . . . . . . Highest-Rated Ally . | . . . . . . . . . . Total Orders . | . . . . . . . . . . Ally Attacks . | . . . . . . . . . . Total Damage . | . . . . . . . . . . Kills . | . . . . . . . . . . Allies Corrupted . | . . . . . . . . . . Allies Melted . | . . . . . . . . . . Intel | -11 -10 -10 -9 -9 -9 -8 -8 -7 -7 ------- Run | Yrd Mat Min Mat Min Exi Min Mat Fac Gar Robot Analysis Total . | . . . . . . . . . . Derelict Logs Recovered 3 | . . 3 . . . . . . . Drone Launches . | . . . . . . . . . . Drone Recoveries . | . . . . . . . . . . Exploration | -11 -10 -10 -9 -9 -9 -8 -8 -7 -7 ------------- Run | Yrd Mat Min Mat Min Exi Min Mat Fac Gar Turns Passed 2948 | 88 700 384 194 88 207 607 243 400 37 Spaces Moved 5149 | 86 692 620 341 240 619 1282 456 690 123 Core 66 | 19 . . . . . . . 47 . Treads . | . . . . . . . . . . Legs . | . . . . . . . . . . Wheels 986 | 67 692 227 . . . . . . . Hover . | . . . . . . . . . . Flight 4097 | . . 393 341 240 619 1282 456 643 123 Fastest Speed 23 | 50 80 37 31 31 31 31 31 23 23 Average Speed 41 | 75 80 53 33 31 31 31 31 32 23 Slowest Speed 114 | 100 80 95 114 31 31 34 40 50 23 Overloaded Moves . | . . . . . . . . . . Propulsion Burnouts . | . . . . . . . . . . Robots Hopped 31 | . . . 6 . . 8 12 5 . Cave-ins Triggered . | . . . . . . . . . . Exploration Rate (%) 55 | 4 91 98 37 58 94 100 36 18 19 Regions Visited 9 Branch Regions 4 Pre-discovered Areas 2 | . . 1 . . 1 . . . . Known Exits Taken 8 | . 1 1 1 1 1 1 1 1 . Unknown Exits Taken 1 | 1 . . . . . . . . . Scrap Searched 2 | . . 1 . . . 1 . . . Spaces Dug . | . . . . . . . . . . Terrain Destroyed 164 | . 54 . 1 . . 103 2 4 . Melee . | . . . . . . . . . . Projectile 5 | . . . 1 . . 2 2 . . AOE 159 | . 54 . . . . 101 . 4 . Terrain Rammed . | . . . . . . . . . . Walls Destroyed . | . . . . . . . . . . Machines Disabled . | . . . . . . . . . . Actions | -11 -10 -10 -9 -9 -9 -8 -8 -7 -7 --------- Run | Yrd Mat Min Mat Min Exi Min Mat Fac Gar Total 5769 | 103 778 654 384 252 635 1453 530 848 132 Wait 352 | . 21 7 16 3 . 145 60 96 4 Move 5083 | 85 691 619 328 239 618 1265 435 680 123 Hop 27 | . . . 6 . . 8 8 5 . Pick Up 64 | 9 10 4 7 3 5 6 5 15 . Fast Attach 12 | 3 . 2 . 1 2 . . 4 . Attach 35 | 4 . 4 5 . 2 4 5 11 . Detach 4 | . . . . . . . 3 1 . Swap 27 | . 12 2 5 3 1 2 2 . . Drop 37 | . 8 3 3 3 7 4 2 6 1 Fire 99 | 2 36 12 14 . . 19 10 6 . Melee . | . . . . . . . . . . Ram 25 | . . 1 . . . . . 24 . Kick . | . . . . . . . . . . Crush . | . . . . . . . . . . Escape Stasis 4 | . . . . . . . . . 4 Rewire . | . . . . . . . . . . Trap . | . . . . . . . . . . Miscellaneous . | . . . . . . . . . . Route ------- -11/Scrapyard -10/Materials (discovered 5 exits: *Mat x3 / *Min x2) -10/Mines -9/Materials (discovered 3 exits: Mat / *Min x2) -9/Mines (discovered 3 exits: *Mat / *Exi / *Zio) -9/Exiles (discovered 2 exits: *Min x2) -8/Mines (discovered 2 exits: *Mat x2) -8/Materials -7/Factory -7/Garrison (discovered 1 exit: *Fac) History --------- Turn | Location | Event 14 | -11/Scrapyard | Discovered new exit (range 16) 89 | -11/Scrapyard | Entered Materials 160 | -10/Materials | Discovered new exit (range 15) 316 | -10/Materials | Build established: Mutant 322 | -10/Materials | Discovered new exit (range 14) 463 | -10/Materials | Discovered new exit (range 13) 480 | -10/Materials | Core integrity fell below 50% 523 | -10/Materials | Discovered new exit (range 16) 542 | -10/Materials | Identified exit to Materials 606 | -10/Materials | Identified exit to Mines 618 | -10/Materials | Discovered exit to Mines (range 4) 789 | -10/Materials | Entered Mines 799 | -10/Mines | Learned location of Mines (-9) 847 | -10/Mines | Lost 3 parts (1n2w) 851 | -10/Mines | Learned 4 Materials zone layouts 981 | -10/Mines | Learned location of 1 exit from Materials 1037 | -10/Mines | Discovered exit to Materials (range 11) 1173 | -10/Mines | Entered Materials 1173 | -9/Materials | Evolved 2 slots: Propulsion x2 1174 | -9/Materials | Identified exit to Materials 1175 | -9/Materials | Identified exit to Mines 1290 | -9/Materials | Discovered exit to Mines (range 16) 1325 | -9/Materials | Repaired Flight Unit 1367 | -9/Materials | Entered Mines 1368 | -9/Mines | A Derelict revealed a hidden shortcut to a safe place 1370 | -9/Mines | Identified exit to Zion 1377 | -9/Mines | Discovered exit to Materials (range 11) 1403 | -9/Mines | Met a Derelict who couldn't figure out how to use a Trap Extractor 1454 | -9/Mines | Deemed a non-threat by the Exiles lab entrance 1454 | -9/Mines | Discovered new exit (range 5) 1455 | -9/Mines | Identified exit to Exiles 1455 | -9/Mines | Entered Exiles 1461 | -9/Exiles | Discovered new exit (range 14) 1466 | -9/Exiles | Identified exit to Mines 1473 | -9/Exiles | Met 8R-AWN 1479 | -9/Exiles | Met EX-HEX 1489 | -9/Exiles | Met EX-BIN 1493 | -9/Exiles | Aligned with FarCom system 1494 | -9/Exiles | Given EX-Vault access code 1509 | -9/Exiles | Opened EX-Vault 1511 | -9/Exiles | Found Prototype Ballistic Gun 1513 | -9/Exiles | Identified AWS/Gauss 1515 | -9/Exiles | Found Prototype Slashing Weapon 1516 | -9/Exiles | Identified Longsword +1 1519 | -9/Exiles | Found Prototype Device 1520 | -9/Exiles | Identified Trap Reconfigurator 1535 | -9/Exiles | Warned to stay clear of 0b10 Research branches 1544 | -9/Exiles | Met EX-DEC 1553 | -9/Exiles | Learned location of Zion (-7) 1574 | -9/Exiles | Visited The Gauntlet 1658 | -9/Exiles | Discovered exit to Mines (range 10) 1662 | -9/Exiles | Left Exiles lab with Trap Reconfigurator 1662 | -9/Exiles | Entered Mines 1663 | -8/Mines | Build established: Scavenger-Sprinter 1706 | -8/Mines | Discovered exit to Materials (range 13) 1805 | -8/Mines | Discovered exit to Materials (range 5) 2201 | -8/Mines | Lost 4 parts (2n2w) 2269 | -8/Mines | Entered Materials 2269 | -8/Materials | Evolved 2 slots: Power x1, Utility x1 2506 | -8/Materials | Discovered new exit (range 16) 2512 | -8/Materials | Identified exit to Factory 2512 | -8/Materials | Entered Factory 2512 | -7/Factory | Evolved 2 slots: Propulsion x1, Utility x1 2514 | -7/Factory | Identified exit to DSF 2529 | -7/Factory | Lost 5 parts (3n2w) 2600 | -7/Factory | System corruption reached 10% 2613 | -7/Factory | Core integrity fell below 50% 2624 | -7/Factory | Core integrity fell below 20% 2630 | -7/Factory | Lost 3 parts (1n2u) 2912 | -7/Factory | Identified exit to Garrison 2912 | -7/Factory | Entered Garrison 2926 | -7/Garrison | Triggered checkpoint 2927 | -7/Garrison | Discovered new exit (range 5) 2927 | -7/Garrison | Identified exit to Factory 2946 | -7/Garrison | Triggered checkpoint 2946 | -7/Garrison | Triggered checkpoint 2949 | -7/Garrison | Destroyed by S-27 Virus with Autogun Last Messages --------------- 02912_ EXIT=UNLOCKED: GARRISON LOCATION=GARRISON GOAL=ESCAPE 02912_ Receiving FarCom transmissions... 02924_ 50Q X3B16%BNC74 OY0RQ